[Event "CZE-ch 2020"]
[Site "Pilsen"]
[Date "2020.08.23"]
[Round "1.21"]
[White "Serrano Salvador, Eduardo"]
[Black "Smolik, Jachym"]
[Result "1/2-1/2"]
[ECO "D38"]
[WhiteElo "2299"]
[BlackElo "2121"]
[Annotator "ChessBase"]
[PlyCount "110"]
[EventDate "2020.08.23"]
[EventType "swiss"]
[EventCountry "CZE"]
[SourceTitle "playchess.com"]
[Source "ChessBase"]
[SourceQuality "1"]
[TimeControl "40/5400+30:1800+30"]

1. d4 {[%emt 0:00:00]} Nf6 {[%emt 0:00:00]} 2. Nf3 {[%emt 0:00:00]} e6 {[%emt 0:00:00]} 3. c4 {[%emt 0:01:00]} d5 {[%emt 0:00:00]} 4. Nc3 {[%emt 0:00:37]} Bb4 {[%emt 0:02:34]} 5. cxd5 {[%emt 0:01:17]} exd5 {[%emt 0:02:27]} 6. Qa4+ {[%emt 0:00:25]} Nc6 {[%emt 0:00:07]} 7. Bg5 {[%emt 0:00:15]} O-O {[%emt 0:00:49]} 8. Rc1 {[%emt 0:00:44]} Qd6 {[%emt 0:04:35]} 9. Bxf6 {[%emt 0:00:58]} Qxf6 {[%emt 0:00:10]} 10. a3 {[%emt 0:00:52]} Bxc3+ {[%emt 0:04:15]} 11. Rxc3 {[%emt 0:00:09]} Bg4 {[%emt 0:01:46]} 12. Ne5 {[%emt 0:00:24]} Nxe5 {[%emt 0:00:24]} 13. dxe5 {[%emt 0:00:07]} Qg6 {[%emt 0:00:29]} 14. Rg3 {[%emt 0:09:54]} Qb1+ {[%emt 0:01:49]} 15. Qd1 {[%emt 0:00:07]} Qxd1+ {[%emt 0:02:48]} 16. Kxd1 {[%emt 0:00:09]} Bf5 {[%emt 0:00:26]} 17. Rb3 {[%emt 0:02:17]} b6 {[%emt 0:00:19]} 18. e3 {[%emt 0:01:19]} c5 {[%emt 0:01:19]} 19. Be2 {[%emt 0:05:41]} Rad8 {[%emt 0:02:52]} 20. Kc1 {[%emt 0:03:32]} d4 {[%emt 0:11:29]} 21. Rd1 {[%emt 0:06:25]} Be6 {[%emt 0:01:37]} 22. Rbd3 {[%emt 0:03:42]} Bc4 {[%emt 0:00:09]} 23. R3d2 {[%emt 0:00:13]} Bb3 {[%emt 0:02:17]} 24. Re1 {[%emt 0:00:22]} dxe3 {[%emt 0:00:20]} 25. Rxd8 {[%emt 0:00:24]} Rxd8 {[%emt 0:00:07]} 26. f4 {[%emt 0:00:28]} Rd4 {[%emt 0:03:37]} 27. g3 {[%emt 0:01:09]} g5 {[%emt 0:02:19]} 28. fxg5 {[%emt 0:01:12]} Re4 {[%emt 0:00:08]} 29. Bd1 {[%emt 0:02:29]} Be6 {[%emt 0:32:03]} 30. Bf3 {[%emt 0:07:22]} Rxe5 {[%emt 0:00:01]} 31. Kc2 {[%emt 0:02:05]} Rxg5 {[%emt 0:00:32]} 32. Rxe3 {[%emt 0:00:07]} c4 {[%emt 0:00:48]} 33. Kc3 {[%emt 0:02:29]} Rb5 {[%emt 0:00:34]} 34. Bd1 {[%emt 0:00:14]} Kg7 {[%emt 0:01:42]} 35. Bc2 {[%emt 0:00:33]} h6 {[%emt 0:02:23]} 36. Re4 {[%emt 0:02:12]} a6 {[%emt 0:03:48]} 37. Rd4 {[%emt 0:01:02]} Kf6 {[%emt 0:04:58]} 38. Rh4 {[%emt 0:02:56]} Kg7 {[%emt 0:01:30]} 39. Rd4 {[%emt 0:00:18]} Rh5 {[%emt 0:03:16]} 40. h4 {[%emt 0:01:49]} Re5 {[%emt 0:02:10]} 41. Re4 {[%emt 0:35:40]} Kf6 {[%emt 0:31:05]} 42. Kd4 {[%emt 0:00:33]} Rf5 {[%emt 0:04:12]} 43. Rf4 {[%emt 0:05:39]} Rxf4+ {[%emt 0:00:02]} 44. gxf4 {[%emt 0:00:06]} h5 {[%emt 0:00:00]} 45. Be4 {[%emt 0:00:00]} a5 {[%emt 0:00:00]} 46. Bf3 {[%emt 0:00:00]} Kf5 {[%emt 0:00:00]} 47. Bxh5 {[%emt 0:00:00]} Kxf4 {[%emt 0:00:00]} 48. Be2 {[%emt 0:00:00]} f6 {[%emt 0:00:00]} 49. Bd1 {[%emt 0:00:00]} Bg4 {[%emt 0:00:00]} 50. Ba4 {[%emt 0:00:00]} Be2 {[%emt 0:00:00]} 51. Bd7 {[%emt 0:00:00]} Bg4 {[%emt 0:00:00]} 52. Be8 {[%emt 0:00:00]} Be6 {[%emt 0:00:00]} 53. a4 {[%emt 0:00:00]} Kg4 {[%emt 0:00:00]} 54. h5 {[%emt 0:00:00]} Kg5 {[%emt 0:00:00]} 55. Ke4 {[%emt 0:00:00]} Bg8 {[%emt 0:02:20]} 1/2-1/2

[Event "CZE-ch 2020"]
[Site "Pilsen"]
[Date "2020.08.23"]
[Round "1.22"]
[White "Koubova, Anna Marie"]
[Black "Stinka, Jakub"]
[Result "0-1"]
[ECO "E16"]
[WhiteElo "2099"]
[BlackElo "2299"]
[Annotator "ChessBase"]
[PlyCount "72"]
[EventDate "2020.08.23"]
[EventType "swiss"]
[EventCountry "CZE"]
[SourceTitle "playchess.com"]
[Source "ChessBase"]
[SourceQuality "1"]
[TimeControl "40/5400+30:1800+30"]

1. Nf3 {[%emt 0:00:00]} Nf6 {[%emt 0:00:00]} 2. d4 {[%emt 0:00:19]} e6 {[%emt 0:00:00]} 3. c4 {[%emt 0:00:11]} Bb4+ {[%emt 0:00:11]} 4. Bd2 {[%emt 0:00:27]} Qe7 {[%emt 0:00:31]} 5. g3 {[%emt 0:00:42]} Nc6 {[%emt 0:00:33]} 6. Bg2 {[%emt 0:00:27]} Bxd2+ {[%emt 0:01:54]} 7. Nbxd2 {[%emt 0:00:09]} O-O {[%emt 0:00:10]} 8. O-O {[%emt 0:00:36]} d6 {[%emt 0:00:48]} 9. e4 {[%emt 0:04:19]} e5 {[%emt 0:01:29]} 10. d5 {[%emt 0:04:35]} Nb8 {[%emt 0:00:15]} 11. Rc1 {[%emt 0:00:15]} a5 {[%emt 0:01:58]} 12. Qc2 {[%emt 0:01:10]} Na6 {[%emt 0:01:49]} 13. a3 {[%emt 0:07:24]} Bg4 {[%emt 0:07:57]} 14. Rfe1 {[%emt 0:09:01]} c6 {[%emt 0:05:07]} 15. dxc6 {[%emt 0:07:10]} bxc6 {[%emt 0:00:02]} 16. Qc3 {[%emt 0:01:56]} Bxf3 {[%emt 0:04:10]} 17. Bxf3 {[%emt 0:19:56]} a4 {[%emt 0:03:24]} 18. b4 {[%emt 0:02:38]} axb3 {[%emt 0:02:13]} 19. Nxb3 {[%emt 0:00:10]} c5 {[%emt 0:01:16]} 20. Rb1 {[%emt 0:07:00]} Nc7 {[%emt 0:02:55]} 21. Na5 {[%emt 0:00:46]} Ne6 {[%emt 0:00:35]} 22. Rb7 {[%emt 0:03:45]} Qe8 {[%emt 0:01:04]} 23. Rb6 {[%emt 0:02:13]} Nd4 {[%emt 0:05:12]} 24. Nb7 {[%emt 0:02:37]} Nd7 {[%emt 0:07:20]} 25. Rb2 {[%emt 0:11:16]} Qe6 {[%emt 0:02:15]} 26. Reb1 {[%emt 0:01:15]} Ra4 {[%emt 0:01:57]} 27. Bd1 {[%emt 0:02:27]} Ra6 {[%emt 0:04:33]} 28. a4 {[%emt 0:01:35]} f5 {[%emt 0:06:54]} 29. exf5 {[%emt 0:02:08]} Qxf5 {[%emt 0:00:17]} 30. a5 {[%emt 0:00:46]} e4 {[%emt 0:01:19]} 31. Qe3 {[%emt 0:02:34]} Ne5 {[%emt 0:02:08]} 32. Rb6 {[%emt 0:01:39]} Nxc4 {[%emt 0:10:31]} 33. Bb3 {[%emt 0:00:21]} Nxb3 {[%emt 0:00:54]} 34. Qxb3 {[%emt 0:02:27]} Rxb6 {[%emt 0:00:37]} 35. axb6 {[%emt 0:00:07]} Qxf2+ {[%emt 0:00:08]} 36. Kh1 {[%emt 0:00:08]} d5 {[%emt 0:01:05]} 0-1

[Event "CZE-ch 2020"]
[Site "Pilsen"]
[Date "2020.08.23"]
[Round "1.23"]
[White "Rabatin, Jakub"]
[Black "Placer, Sebastian"]
[Result "1/2-1/2"]
[ECO "C03"]
[WhiteElo "2291"]
[BlackElo "2097"]
[Annotator "ChessBase"]
[PlyCount "99"]
[EventDate "2020.08.23"]
[EventType "swiss"]
[EventCountry "CZE"]
[SourceTitle "playchess.com"]
[Source "ChessBase"]
[SourceQuality "1"]
[TimeControl "40/5400+30:1800+30"]

1. e4 {[%emt 0:00:00]} e6 {[%emt 0:00:00]} 2. d4 {[%emt 0:00:00]} d5 {[%emt 0:00:00]} 3. Nd2 {[%emt 0:00:00]} a6 {[%emt 0:00:22]} 4. Ngf3 {[%emt 0:00:52]} c5 {[%emt 0:00:31]} 5. exd5 {[%emt 0:00:23]} exd5 {[%emt 0:00:11]} 6. Be2 {[%emt 0:00:14]} Nf6 {[%emt 0:01:22]} 7. O-O {[%emt 0:00:26]} Be7 {[%emt 0:01:49]} 8. dxc5 {[%emt 0:03:10]} Bxc5 {[%emt 0:01:11]} 9. Nb3 {[%emt 0:00:06]} Bb6 {[%emt 0:00:05]} 10. Bg5 {[%emt 0:09:21]} O-O {[%emt 0:01:45]} 11. c3 {[%emt 0:00:45]} Re8 {[%emt 0:03:26]} 12. Nfd4 {[%emt 0:26:09]} Nc6 {[%emt 0:03:04]} 13. Bf3 {[%emt 0:04:11]} Be6 {[%emt 0:09:51]} 14. Re1 {[%emt 0:00:35]} h6 {[%emt 0:04:05]} 15. Bh4 {[%emt 0:00:39]} Rc8 {[%emt 0:16:46]} 16. Qd3 {[%emt 0:05:23]} Qd7 {[%emt 0:28:32]} 17. Nxc6 {[%emt 0:18:43]} Qxc6 {[%emt 0:07:46]} 18. Bxf6 {[%emt 0:00:38]} gxf6 {[%emt 0:00:05]} 19. Rad1 {[%emt 0:01:52]} Rcd8 {[%emt 0:09:45]} 20. Nd4 {[%emt 0:01:52]} Qc7 {[%emt 0:01:20]} 21. Qd2 {[%emt 0:03:39]} Kg7 {[%emt 0:01:55]} 22. Re3 {[%emt 0:06:18]} Bc5 {[%emt 0:02:26]} 23. Rde1 {[%emt 0:04:21]} Qc8 {[%emt 0:01:43]} 24. Bh5 {[%emt 0:06:21]} Bd6 {[%emt 0:01:47]} 25. Qd3 {[%emt 0:02:49]} Be5 {[%emt 0:00:52]} 26. f4 {[%emt 0:00:35]} Bxd4 {[%emt 0:00:53]} 27. Qxd4 {[%emt 0:00:18]} Bf5 {[%emt 0:00:25]} 28. Rg3+ {[%emt 0:03:05]} Bg6 {[%emt 0:00:05]} 29. Rxe8 {[%emt 0:00:32]} Rxe8 {[%emt 0:00:01]} 30. h3 {[%emt 0:00:48]} Re1+ {[%emt 0:01:17]} 31. Kh2 {[%emt 0:00:10]} Qf5 32. Bxg6 {[%emt 0:01:00]} fxg6 {[%emt 0:01:03]} 33. Re3 {[%emt 0:00:36]} Rxe3 {[%emt 0:00:26]} 34. Qxe3 {[%emt 0:00:03]} Kf7 {[%emt 0:00:38]} 35. Kg3 {[%emt 0:00:36]} Qd7 {[%emt 0:00:45]} 36. Qd4 {[%emt 0:00:48]} Qc6 {[%emt 0:00:30]} 37. Kf2 {[%emt 0:00:20]} Qe6 {[%emt 0:00:37]} 38. Qc5 {[%emt 0:00:45]} h5 {[%emt 0:01:03]} 39. Qe3 {[%emt 0:00:25]} Qf5 {[%emt 0:00:31]} 40. Kg3 {[%emt 0:00:35]} Qd7 {[%emt 0:00:29]} 41. Qb6 {[%emt 0:01:58]} Qe7 {[%emt 0:03:54]} 42. a4 {[%emt 0:07:08]} g5 {[%emt 0:05:24]} 43. Qd4 {[%emt 0:02:29]} h4+ {[%emt 0:02:41]} 44. Kf3 {[%emt 0:03:01]} Qe6 {[%emt 0:00:43]} 45. b4 {[%emt 0:07:23]} Kg6 {[%emt 0:02:57]} 46. b5 {[%emt 0:03:08]} axb5 {[%emt 0:02:00]} 47. axb5 {[%emt 0:00:01]} Qe1 {[%emt 0:04:11]} 48. Qxd5 {[%emt 0:05:27]} Qxc3+ {[%emt 0:00:25]} 49. Ke2 {[%emt 0:00:17]} Qc2+ {[%emt 0:00:20]} 50. Ke1 {[%emt 0:01:08]} 1/2-1/2

[Event "CZE-ch 2020"]
[Site "Pilsen"]
[Date "2020.08.23"]
[Round "1.24"]
[White "Jun, Rudolf"]
[Black "Mladek, Richard"]
[Result "1/2-1/2"]
[ECO "B51"]
[WhiteElo "2094"]
[BlackElo "2280"]
[Annotator "ChessBase"]
[PlyCount "92"]
[EventDate "2020.08.23"]
[EventType "swiss"]
[EventCountry "CZE"]
[SourceTitle "playchess.com"]
[Source "ChessBase"]
[SourceQuality "1"]
[TimeControl "40/5400+30:1800+30"]

1. e4 {[%emt 0:00:00]} c5 {[%emt 0:00:00]} 2. Nf3 {[%emt 0:00:03]} d6 {[%emt 0:00:00]} 3. Bb5+ {[%emt 0:00:35]} Nd7 {[%emt 0:00:00]} 4. O-O {[%emt 0:00:22]} a6 {[%emt 0:00:00]} 5. Bd3 {[%emt 0:00:28]} Ngf6 {[%emt 0:00:26]} 6. Re1 {[%emt 0:00:30]} g6 {[%emt 0:03:12]} 7. c3 {[%emt 0:01:00]} Bg7 {[%emt 0:00:48]} 8. Bc2 {[%emt 0:00:54]} O-O {[%emt 0:00:56]} 9. d4 {[%emt 0:01:13]} e5 {[%emt 0:01:20]} 10. d5 {[%emt 0:06:49]} b5 {[%emt 0:01:48]} 11. Nbd2 {[%emt 0:01:15]} Qc7 {[%emt 0:06:30]} 12. Nf1 {[%emt 0:02:50]} c4 {[%emt 0:02:44]} 13. h3 {[%emt 0:02:21]} Nh5 {[%emt 0:02:50]} 14. N3h2 {[%emt 0:03:48]} a5 {[%emt 0:03:04]} 15. b3 {[%emt 0:01:43]} cxb3 {[%emt 0:02:52]} 16. axb3 {[%emt 0:00:11]} Qxc3 {[%emt 0:03:06]} 17. Bd2 {[%emt 0:00:47]} Qc7 {[%emt 0:01:08]} 18. Bd3 {[%emt 0:00:25]} Qb6 {[%emt 0:01:45]} 19. Be3 {[%emt 0:03:59]} Qb8 {[%emt 0:02:19]} 20. Qd2 {[%emt 0:02:55]} b4 {[%emt 0:01:42]} 21. Ra2 {[%emt 0:02:10]} Nf4 {[%emt 0:02:41]} 22. Rea1 {[%emt 0:02:06]} Nxd3 {[%emt 0:01:40]} 23. Qxd3 {[%emt 0:01:14]} Ba6 {[%emt 0:00:37]} 24. Qd2 {[%emt 0:01:40]} Bxf1 {[%emt 0:00:17]} 25. Nxf1 {[%emt 0:01:37]} Qb5 {[%emt 0:00:03]} 26. Qe2 {[%emt 0:05:55]} Qxe2 {[%emt 0:07:39]} 27. Rxe2 {[%emt 0:00:11]} f5 {[%emt 0:01:16]} 28. f3 {[%emt 0:01:36]} Rfc8 {[%emt 0:02:51]} 29. Rea2 {[%emt 0:04:39]} fxe4 {[%emt 0:05:22]} 30. fxe4 {[%emt 0:00:27]} Nf6 {[%emt 0:03:12]} 31. Nd2 {[%emt 0:03:23]} Rc3 {[%emt 0:00:47]} 32. Bg5 {[%emt 0:00:37]} h6 {[%emt 0:10:44]} 33. Bh4 {[%emt 0:02:07]} Rd3 {[%emt 0:01:44]} 34. Be1 {[%emt 0:03:11]} h5 {[%emt 0:01:35]} 35. Rxa5 {[%emt 0:01:17]} Rxa5 {[%emt 0:03:15]} 36. Rxa5 {[%emt 0:00:07]} Bh6 {[%emt 0:00:31]} 37. Ra8+ {[%emt 0:00:33]} Kf7 {[%emt 0:00:08]} 38. Ra7+ {[%emt 0:00:13]} Ke8 {[%emt 0:00:58]} 39. Ra8+ {[%emt 0:11:43]} Kd7 {[%emt 0:00:53]} 40. Nc4 {[%emt 0:01:43]} Nxe4 {[%emt 0:01:50]} 41. Bxb4 {[%emt 0:37:33]} Rxb3 {[%emt 0:36:59]} 42. Ra7+ {[%emt 0:02:58]} Kc8 {[%emt 0:01:55]} 43. Bxd6 {[%emt 0:04:20]} Rb1+ {[%emt 0:00:00]} 44. Kh2 {[%emt 0:00:00]} Bf4+ {[%emt 0:00:00]} 45. g3 {[%emt 0:00:00]} Nxg3 {[%emt 0:00:00]} 46. Kg2 {[%emt 0:00:00]} Nf5 {[%emt 0:01:38]} 1/2-1/2

[Event "CZE-ch 2020"]
[Site "Pilsen"]
[Date "2020.08.23"]
[Round "1.25"]
[White "Vorisek, Jaroslav"]
[Black "Vojta, Jakub"]
[Result "1/2-1/2"]
[ECO "D20"]
[WhiteElo "2279"]
[BlackElo "2093"]
[Annotator "ChessBase"]
[PlyCount "98"]
[EventDate "2020.08.23"]
[EventType "swiss"]
[EventCountry "CZE"]
[SourceTitle "playchess.com"]
[Source "ChessBase"]
[SourceQuality "1"]
[TimeControl "40/5400+30:1800+30"]

1. d4 {[%emt 0:00:00]} d5 {[%emt 0:00:00]} 2. c4 {[%emt 0:01:25]} dxc4 {[%emt 0:00:00]} 3. e3 {[%emt 0:02:36]} Nf6 {[%emt 0:00:05]} 4. Bxc4 {[%emt 0:02:46]} e6 {[%emt 0:00:20]} 5. Nf3 {[%emt 0:06:44]} a6 {[%emt 0:00:57]} 6. O-O {[%emt 0:08:13]} b5 {[%emt 0:00:04]} 7. Be2 {[%emt 0:01:11]} Bb7 {[%emt 0:00:27]} 8. a4 {[%emt 0:06:29]} b4 {[%emt 0:00:13]} 9. b3 {[%emt 0:00:10]} Nbd7 {[%emt 0:01:30]} 10. Nbd2 {[%emt 0:04:06]} c5 {[%emt 0:01:09]} 11. Nc4 {[%emt 0:00:26]} Be7 {[%emt 0:01:33]} 12. Bb2 {[%emt 0:04:23]} O-O {[%emt 0:01:08]} 13. Rc1 {[%emt 0:11:03]} Ne4 {[%emt 0:03:47]} 14. Qc2 {[%emt 0:05:25]} Ndf6 {[%emt 0:03:03]} 15. Rfd1 {[%emt 0:05:53]} Qc7 {[%emt 0:03:18]} 16. Nfe5 {[%emt 0:04:41]} Rac8 {[%emt 0:06:14]} 17. f3 {[%emt 0:14:39]} Nd6 {[%emt 0:03:01]} 18. e4 {[%emt 0:00:30]} Rfd8 {[%emt 0:00:30]} 19. Ne3 {[%emt 0:06:42]} Nde8 {[%emt 0:00:46]} 20. d5 {[%emt 0:04:26]} exd5 {[%emt 0:01:51]} 21. exd5 {[%emt 0:00:10]} c4 {[%emt 0:05:53]} 22. bxc4 {[%emt 0:03:14]} Bc5 {[%emt 0:00:29]} 23. Qb3 {[%emt 0:02:45]} Qb6 {[%emt 0:00:53]} 24. Kf2 {[%emt 0:02:44]} Nd6 {[%emt 0:01:55]} 25. a5 {[%emt 0:00:35]} Qa7 {[%emt 0:03:03]} 26. g4 {[%emt 0:00:25]} Re8 {[%emt 0:08:50]} 27. Rd3 {[%emt 0:00:09]} Bxd5 {[%emt 0:03:43]} 28. cxd5 {[%emt 0:00:49]} Bxe3+ {[%emt 0:01:43]} 29. Rxe3 {[%emt 0:00:29]} Rxc1 {[%emt 0:00:31]} 30. Bxc1 {[%emt 0:00:18]} Rxe5 {[%emt 0:00:17]} 31. Qxb4 {[%emt 0:00:51]} Rxd5 {[%emt 0:30:26]} 32. Qb6 {[%emt 0:00:03]} Qa8 {[%emt 0:00:56]} 33. Qb4 {[%emt 0:01:30]} h5 {[%emt 0:01:20]} 34. Bb2 {[%emt 0:00:16]} h4 {[%emt 0:04:24]} 35. Be5 {[%emt 0:00:40]} Nb5 {[%emt 0:03:27]} 36. Bxf6 {[%emt 0:00:24]} gxf6 {[%emt 0:00:06]} 37. Qe4 {[%emt 0:00:29]} Nd6 {[%emt 0:00:16]} 38. Qf4 {[%emt 0:00:24]} Kg7 {[%emt 0:01:31]} 39. Rd3 {[%emt 0:00:40]} Qa7+ {[%emt 0:02:26]} 40. Kf1 {[%emt 0:00:07]} Qc5 {[%emt 0:02:15]} 41. Rxd5 {[%emt 0:30:51]} Qxd5 {[%emt 0:30:04]} 42. Bxa6 {[%emt 0:00:00]} Nb5 {[%emt 0:00:00]} 43. Qe4 {[%emt 0:00:00]} Qd1+ {[%emt 0:00:00]} 44. Kg2 {[%emt 0:00:00]} h3+ {[%emt 0:00:00]} 45. Kxh3 {[%emt 0:00:00]} Qf1+ {[%emt 0:00:00]} 46. Kg3 {[%emt 0:00:00]} Qg1+ {[%emt 0:00:00]} 47. Kh3 {[%emt 0:00:00]} Qf1+ {[%emt 0:00:00]} 48. Kg3 {[%emt 0:00:00]} Qg1+ {[%emt 0:00:00]} 49. Kh3 {[%emt 0:00:00]} Qf1+ {[%emt 0:00:00]} 1/2-1/2

[Event "CZE-ch 2020"]
[Site "Pilsen"]
[Date "2020.08.23"]
[Round "1.26"]
[White "Malinovsky, Petr"]
[Black "Stalmach, Richard"]
[Result "0-1"]
[ECO "E80"]
[WhiteElo "2081"]
[BlackElo "2273"]
[Annotator "ChessBase"]
[PlyCount "70"]
[EventDate "2020.08.23"]
[EventType "swiss"]
[EventCountry "CZE"]
[SourceTitle "playchess.com"]
[Source "ChessBase"]
[SourceQuality "1"]
[TimeControl "40/5400+30:1800+30"]

1. d4 {[%emt 0:00:00]} Nf6 {[%emt 0:00:00]} 2. c4 {[%emt 0:00:00]} g6 {[%emt 0:00:00]} 3. f3 {[%emt 0:00:00]} Bg7 {[%emt 0:01:06]} 4. e4 {[%emt 0:00:00]} d6 {[%emt 0:00:16]} 5. Nc3 {[%emt 0:00:00]} Nbd7 {[%emt 0:01:00]} 6. Be3 {[%emt 0:00:13]} e5 {[%emt 0:03:43]} 7. d5 {[%emt 0:00:17]} Nh5 {[%emt 0:00:04]} 8. Nge2 {[%emt 0:06:25]} O-O {[%emt 0:00:35]} 9. g4 {[%emt 0:00:34]} Nf4 {[%emt 0:00:08]} 10. Nxf4 {[%emt 0:01:03]} exf4 {[%emt 0:00:04]} 11. Bxf4 {[%emt 0:00:20]} f5 {[%emt 0:00:47]} 12. gxf5 {[%emt 0:02:21]} gxf5 {[%emt 0:00:06]} 13. Qd2 {[%emt 0:01:24]} Qh4+ {[%emt 0:19:31]} 14. Bg3 {[%emt 0:00:33]} Qf6 {[%emt 0:00:04]} 15. O-O-O {[%emt 0:02:40]} f4 {[%emt 0:00:07]} 16. Bf2 {[%emt 0:00:32]} Ne5 {[%emt 0:00:56]} 17. Be2 {[%emt 0:00:15]} a6 {[%emt 0:00:35]} 18. Rdg1 {[%emt 0:08:53]} Bh3 {[%emt 0:09:17]} 19. Kb1 {[%emt 0:01:17]} Kh8 {[%emt 0:00:33]} 20. c5 {[%emt 0:04:42]} b5 {[%emt 0:05:34]} 21. Nd1 {[%emt 0:04:45]} a5 {[%emt 0:03:08]} 22. c6 {[%emt 0:09:28]} b4 {[%emt 0:08:12]} 23. Be1 {[%emt 0:01:43]} Rfb8 {[%emt 0:06:25]} 24. Nf2 {[%emt 0:01:05]} Bc8 {[%emt 0:00:05]} 25. Rg2 {[%emt 0:03:17]} a4 {[%emt 0:00:45]} 26. Rhg1 {[%emt 0:01:14]} Ng6 {[%emt 0:00:05]} 27. Rg5 {[%emt 0:13:04]} a3 {[%emt 0:02:18]} 28. e5 {[%emt 0:00:47]} b3 {[%emt 0:00:33]} 29. exf6 {[%emt 0:05:41]} bxa2+ {[%emt 0:00:09]} 30. Ka1 {[%emt 0:01:40]} Bxf6 {[%emt 0:00:48]} 31. Nd1 {[%emt 0:05:04]} axb2+ {[%emt 0:00:05]} 32. Nxb2 {[%emt 0:00:31]} Rxb2 {[%emt 0:00:04]} 33. Qxb2 {[%emt 0:01:22]} Bxb2+ {[%emt 0:00:04]} 34. Kxb2 {[%emt 0:00:06]} a1=Q+ {[%emt 0:00:04]} 35. Kc2 {[%emt 0:00:57]} Ra2+ {[%emt 0:00:03]} 0-1

[Event "CZE-ch 2020"]
[Site "Pilsen"]
[Date "2020.08.23"]
[Round "1.27"]
[White "Riha, Vojtech"]
[Black "Kopriva, Martin"]
[Result "0-1"]
[ECO "B06"]
[WhiteElo "2270"]
[BlackElo "2079"]
[Annotator "ChessBase"]
[PlyCount "88"]
[EventDate "2020.08.23"]
[EventType "swiss"]
[EventCountry "CZE"]
[SourceTitle "playchess.com"]
[Source "ChessBase"]
[SourceQuality "1"]
[TimeControl "40/5400+30:1800+30"]

1. e4 {[%emt 0:00:00]} g6 {[%emt 0:00:00]} 2. d4 {[%emt 0:00:09]} Bg7 {[%emt 0:00:00]} 3. Nc3 {[%emt 0:00:47]} d6 {[%emt 0:00:05]} 4. f4 {[%emt 0:00:26]} Nc6 {[%emt 0:00:45]} 5. Nf3 {[%emt 0:03:11]} Bg4 {[%emt 0:01:02]} 6. Be3 {[%emt 0:01:20]} Bxf3 {[%emt 0:00:51]} 7. gxf3 {[%emt 0:00:23]} d5 {[%emt 0:03:01]} 8. Bb5 {[%emt 0:16:08]} e6 {[%emt 0:06:07]} 9. f5 {[%emt 0:06:05]} gxf5 {[%emt 0:12:23]} 10. exd5 {[%emt 0:03:11]} exd5 {[%emt 0:02:53]} 11. Qd3 {[%emt 0:02:03]} Nge7 {[%emt 0:05:45]} 12. Bg5 {[%emt 0:07:33]} Qd6 {[%emt 0:13:30]} 13. Bxe7 {[%emt 0:05:03]} Qxe7+ {[%emt 0:02:03]} 14. Kf1 {[%emt 0:03:15]} O-O-O {[%emt 0:05:41]} 15. Bxc6 {[%emt 0:05:29]} bxc6 {[%emt 0:00:46]} 16. Rg1 {[%emt 0:05:14]} Rhg8 {[%emt 0:04:44]} 17. Re1 {[%emt 0:06:35]} Qh4 {[%emt 0:03:38]} 18. Qxf5+ {[%emt 0:06:15]} Kb8 {[%emt 0:01:15]} 19. Qg4 {[%emt 0:02:32]} Qxh2 {[%emt 0:02:17]} 20. Re2 {[%emt 0:02:20]} Qh6 {[%emt 0:01:09]} 21. Nd1 {[%emt 0:05:40]} f5 {[%emt 0:02:30]} 22. Qg5 {[%emt 0:08:46]} Bxd4 {[%emt 0:02:20]} 23. Qxg8 {[%emt 0:00:35]} Rxg8 {[%emt 0:00:10]} 24. Rxg8+ {[%emt 0:00:04]} Kb7 {[%emt 0:00:07]} 25. Nf2 {[%emt 0:04:33]} Qh2 {[%emt 0:04:28]} 26. c3 {[%emt 0:02:18]} Bb6 {[%emt 0:01:00]} 27. Rg1 {[%emt 0:00:50]} Qf4 {[%emt 0:04:27]} 28. Kg2 {[%emt 0:01:13]} h5 {[%emt 0:01:26]} 29. Rh1 {[%emt 0:00:51]} h4 {[%emt 0:01:22]} 30. Rh3 {[%emt 0:00:16]} a6 {[%emt 0:02:56]} 31. a3 {[%emt 0:00:35]} a5 {[%emt 0:01:47]} 32. Kf1 {[%emt 0:00:24]} Qc1+ {[%emt 0:02:11]} 33. Kg2 {[%emt 0:00:09]} Qg5+ {[%emt 0:00:21]} 34. Kf1 {[%emt 0:00:20]} Be3 {[%emt 0:01:05]} 35. Rh1 {[%emt 0:01:25]} c5 {[%emt 0:01:37]} 36. Nd3 {[%emt 0:01:11]} c4 {[%emt 0:02:22]} 37. Ne1 {[%emt 0:00:43]} h3 {[%emt 0:04:19]} 38. Reh2 {[%emt 0:00:31]} Bc1 {[%emt 0:01:54]} 39. Rc2 {[%emt 0:00:33]} Bd2 {[%emt 0:01:17]} 40. Rg1 {[%emt 0:00:31]} Qe3 {[%emt 0:00:26]} 41. Rxd2 {[%emt 0:04:41]} Qxd2 {[%emt 0:00:00]} 42. Rh1 {[%emt 0:00:10]} h2 {[%emt 0:01:18]} 43. Ng2 {[%emt 0:00:28]} Qc1+ {[%emt 0:00:12]} 44. Ne1 {[%emt 0:00:04]} Qxb2 {[%emt 0:00:27]} 0-1